fUSD/lending_fUSD_20241118
["ID","MTS","AMOUNT","RATE_DAILY","PERIOD"]
[342505745,1731941441186,-205.58645593,9.989e-05,2]
[342505746,1731941441198,-2255.94354407,9.989e-05,2]
[342505747,1731941441207,-500.0,9.989e-05,2]
[342505748,1731941441216,-500.0,9.989e-05,2]
[342505749,1731941441228,-531.9,9.989e-05,2]
[342505750,1731941441237,-500.0,9.989e-05,2]
[342505751,1731941441246,-500.0,9.989e-05,2]
[342505752,1731941441255,-87268.17173182,9.99e-05,2]
[342505753,1731941441270,-150734.16102585,9.99e-05,2]
[342505754,1731941441281,-1101.075001,9.99e-05,2]
[342505766,1731941443201,-459.46547158,9.99e-05,2]
[342505771,1731941443242,-4777.30943277,9.99e-05,2]
[342505773,1731941443284,-901.8010246,9.99e-05,2]
[342505774,1731941443424,-4758.01631238,9.99e-05,2]
[342505775,1731941443434,-208.86836631,9.992e-05,2]
[342505776,1731941443445,-500.0,9.992e-05,2]
[342505777,1731941443454,-500.0,9.992e-05,2]
[342505778,1731941443463,-500.0,9.992e-05,2]
[342505779,1731941443472,-500.0,9.992e-05,2]
[342505780,1731941443486,-500.0,9.992e-05,2]
[342505781,1731941443495,-6.61854419,9.992e-05,2]
[342505782,1731941443509,-493.38145581,9.992e-05,2]
[342505783,1731941443520,-500.0,9.992e-05,2]
[342505784,1731941443529,-216.22,9.992e-05,2]
[342505785,1731941443538,-500.0,9.992e-05,2]
[342505786,1731941443547,-500.0,9.992e-05,2]
[342505787,1731941443556,-500.0,9.992e-05,2]
[342505788,1731941443564,-500.0,9.992e-05,2]
[342505789,1731941443573,-500.0,9.992e-05,2]
[342505790,1731941443583,-500.0,9.992e-05,2]
[342505791,1731941443592,-500.0,9.992e-05,2]
[342505792,1731941443602,-500.0,9.992e-05,2]
[342505793,1731941443611,-500.0,9.992e-05,2]
[342505794,1731941443620,-500.0,9.992e-05,2]
[342505795,1731941443630,-500.0,9.992e-05,2]
[342505796,1731941443639,-342.06,9.992e-05,2]
[342505797,1731941443649,-500.0,9.992e-05,2]
[342505798,1731941443658,-312.81,9.992e-05,2]
[342505799,1731941443668,-500.0,9.992e-05,2]
[342505800,1731941443678,-162.33,9.992e-05,2]
[342505801,1731941443687,-685.22,9.992e-05,2]
[342505802,1731941443696,-685.22,9.992e-05,2]
[342505803,1731941443706,-273.7574697,9.992e-05,2]
[342505804,1731941443715,-500.0,9.992e-05,2]
[342505805,1731941443724,-189.35,9.992e-05,2]
[342505806,1731941443736,-500.0,9.992e-05,2]
[342505807,1731941443746,-262.78763573,9.992e-05,2]
[342505808,1731941443755,-500.0,9.992e-05,2]
[342505810,1731941443765,-500.0,9.992e-05,2]
[342505811,1731941443774,-500.0,9.992e-05,2]
[342505812,1731941443783,-500.0,9.992e-05,2]
[342505813,1731941443793,-274.91464928,9.992e-05,2]
[342505814,1731941443802,-358.04870941,9.992e-05,2]
[342505815,1731941443812,-500.0,9.992e-05,2]
[342505816,1731941443821,-500.0,9.992e-05,2]
[342505817,1731941443830,-500.0,9.992e-05,2]
[342505818,1731941443840,-505.09649168,9.992e-05,2]
[342505819,1731941443849,-500.0,9.992e-05,2]
[342505820,1731941443858,-500.0,9.992e-05,2]
[342505821,1731941443868,-500.0,9.992e-05,2]
[342505822,1731941443877,-159.56,9.992e-05,2]
[342505823,1731941443887,-500.0,9.992e-05,2]
[342505824,1731941443896,-376.2,9.992e-05,2]
[342505825,1731941443905,-500.0,9.992e-05,2]
[342505827,1731941443914,-413.65,9.992e-05,2]
[342505829,1731941443924,-510.57,9.992e-05,2]
[342505830,1731941443933,-500.0,9.992e-05,2]
[342505831,1731941443943,-448.63,9.992e-05,2]
[342505833,1731941443952,-500.0,9.992e-05,2]
[342505834,1731941443961,-322.64066571,9.992e-05,2]
[342505835,1731941443971,-500.0,9.992e-05,2]
[342505836,1731941443982,-500.0,9.992e-05,2]
[342505837,1731941443991,-500.0,9.992e-05,2]
[342505838,1731941444000,-501.22104173,9.992e-05,2]
[342505839,1731941444010,-555.63,9.992e-05,2]
[342505840,1731941444019,-572.36,9.992e-05,2]
[342505841,1731941444028,-532.65,9.992e-05,2]
[342505842,1731941444037,-500.0,9.992e-05,2]
[342505843,1731941444046,-500.0,9.992e-05,2]
[342505844,1731941444055,-500.0,9.992e-05,2]
[342505845,1731941444065,-500.0,9.992e-05,2]
[342505846,1731941444074,-481.99,9.992e-05,2]
[342505847,1731941444084,-150.0,9.995e-05,2]
[342505848,1731941444093,-275.22,9.996e-05,2]
[342505849,1731941444102,-463.16,9.996e-05,2]
[342505850,1731941444111,-230.46,9.996e-05,2]
[342505851,1731941444120,-269.98,9.996e-05,2]
[342505852,1731941444131,-494.54,9.996e-05,2]
[342505853,1731941444142,-463.89,9.996e-05,2]
[342505854,1731941444151,-685.22,9.996e-05,2]
[342505855,1731941444161,-319.53,9.996e-05,2]
[342505856,1731941444170,-544.92373408,9.996e-05,2]
[342505857,1731941444181,-500.0,9.996e-05,2]
[342505858,1731941444190,-500.0,9.996e-05,2]
[342505859,1731941444199,-500.0,9.996e-05,2]
[342505860,1731941444210,-150.0,9.997e-05,2]
[342505861,1731941444219,-386.36511069,9.997e-05,2]
[342505862,1731941444229,-500.0,9.998e-05,2]
[342505863,1731941444238,-1500.0,9.998e-05,2]
[342505864,1731941444247,-685.22,9.998e-05,2]
[342505865,1731941444257,-685.22,9.998e-05,2]
[342505866,1731941444266,-685.22,9.998e-05,2]
[342505867,1731941444276,-500.0,9.998e-05,2]
[342505868,1731941444285,-306.0,9.998e-05,2]
[342505869,1731941444294,-562.94,9.998e-05,2]
[342505870,1731941444303,-233.15,9.998e-05,2]
[342505871,1731941444312,-364.5,9.998e-05,2]
[342505872,1731941444321,-393.17,9.998e-05,2]
[342505873,1731941444331,-500.0,9.998e-05,2]
[342505874,1731941444340,-500.0,9.998e-05,2]
[342505875,1731941444351,-440.78,9.998e-05,2]
[342505876,1731941444360,-577.79,9.998e-05,2]
[342505877,1731941444370,-500.0,9.998e-05,2]
[342505878,1731941444379,-500.0,9.998e-05,2]
[342505879,1731941444389,-500.0,9.998e-05,2]
[342505880,1731941444399,-347.83,9.998e-05,2]
[342505881,1731941444408,-500.0,9.998e-05,2]
[342505882,1731941444417,-500.0,9.998e-05,2]
[342505883,1731941444427,-509.97266933,9.998e-05,2]
[342505884,1731941444437,-500.0,9.998e-05,2]
[342505885,1731941444446,-500.0,9.998e-05,2]
[342505886,1731941444456,-487.59,9.998e-05,2]
[342505887,1731941444465,-500.0,9.998e-05,2]
[342505888,1731941444475,-362.61,9.998e-05,2]
[342505889,1731941444486,-500.0,9.998e-05,2]
[342505890,1731941444496,-668.0,9.998e-05,2]
[342505891,1731941444505,-500.0,9.998e-05,2]
[342505892,1731941444514,-684.67,9.998e-05,2]
[342505893,1731941444524,-692.41,9.998e-05,2]
[342505894,1731941444534,-500.0,9.998e-05,2]
[342505895,1731941444544,-298.5234922,9.998e-05,2]
[342505896,1731941444554,-255.88,9.998e-05,2]
[342505897,1731941444564,-292.02,9.998e-05,2]
[342505898,1731941444575,-2461.53,9.998e-05,2]
[342505899,1731941444584,-500.0,9.998e-05,2]
[342505900,1731941444595,-243.24,9.998e-05,2]
[342505901,1731941444606,-508.0,9.998e-05,2]
[342505902,1731941444616,-500.0,9.998e-05,2]
[342505903,1731941444626,-150.0,9.998e-05,2]
[342505904,1731941444636,-2601.502,9.998e-05,2]
[342505905,1731941444646,-279.733,9.998e-05,2]
[342505906,1731941444655,-226.0,9.998e-05,2]
[342505907,1731941444665,-150.374,9.998e-05,2]
[342505908,1731941444675,-200.0,9.998e-05,2]
[342505909,1731941444685,-157.239,9.998e-05,2]
[342505910,1731941444695,-386.52434974,9.999e-05,2]
[342505911,1731941444704,-685.22,9.999e-05,2]
[342505912,1731941444714,-685.22,9.999e-05,2]
[342505913,1731941444724,-685.22,9.999e-05,2]
[342505914,1731941444736,-685.22,9.999e-05,2]
[342505915,1731941444746,-685.22,9.999e-05,2]
[342505916,1731941444756,-685.22,9.999e-05,2]
[342505917,1731941444766,-685.22,9.999e-05,2]
[342505918,1731941444775,-685.22,9.999e-05,2]
[342505919,1731941444785,-685.22,9.999e-05,2]
[342505920,1731941444795,-685.22,9.999e-05,2]
[342505921,1731941444805,-685.22,9.999e-05,2]
[342505922,1731941444814,-685.22,9.999e-05,2]
[342505923,1731941444824,-685.22,9.999e-05,2]
[342505924,1731941444834,-685.22,9.999e-05,2]
[342505925,1731941444844,-685.22,9.999e-05,2]
[342505926,1731941444854,-685.22,9.999e-05,2]
[342505927,1731941444864,-685.22,9.999e-05,2]
[342505928,1731941444874,-685.23694292,9.999e-05,2]
[342505929,1731941444884,-500.0,9.999e-05,2]
[342505930,1731941444894,-500.0,9.999e-05,2]
[342505931,1731941444904,-500.0,9.999e-05,2]
[342505932,1731941444915,-500.0,9.999e-05,2]
[342505933,1731941444925,-520.64,9.999e-05,2]
[342505934,1731941444935,-414.61,9.999e-05,2]
[342505935,1731941444945,-196.6,9.999e-05,2]
[342505936,1731941444955,-500.0,9.999e-05,2]
[342505937,1731941444965,-471.4,9.999e-05,2]
[342505938,1731941444975,-500.0,9.999e-05,2]
[342505939,1731941444990,-500.0,9.999e-05,2]
[342505940,1731941444999,-500.0,9.999e-05,2]
[342505941,1731941445009,-500.0,9.999e-05,2]
[342505942,1731941445019,-215.52,9.999e-05,2]
[342505943,1731941445029,-500.0,9.999e-05,2]
[342505944,1731941445038,-500.0,9.999e-05,2]
[342505945,1731941445048,-500.0,9.999e-05,2]
[342505946,1731941445058,-500.0,9.999e-05,2]
[342505947,1731941445069,-500.0,9.999e-05,2]
[342505948,1731941445079,-500.0,9.999e-05,2]
[342505949,1731941445088,-500.0,9.999e-05,2]
[342505950,1731941445098,-465.52758075,9.999e-05,2]
[342505951,1731941445107,-500.0,9.999e-05,2]
[342505952,1731941445117,-500.0,9.999e-05,2]
[342505953,1731941445127,-500.0,9.999e-05,2]
[342505954,1731941445139,-500.0,9.999e-05,2]
[342505955,1731941445149,-500.0,9.999e-05,2]
[342505956,1731941445158,-500.0,9.999e-05,2]
[342505957,1731941445168,-500.0,9.999e-05,2]
[342505958,1731941445179,-500.0,9.999e-05,2]
[342505959,1731941445189,-500.0,9.999e-05,2]
[342505960,1731941445199,-500.0,9.999e-05,2]
[342505961,1731941445210,-500.0,9.999e-05,2]
[342505962,1731941445220,-500.0,9.999e-05,2]
[342505963,1731941445231,-500.0,9.999e-05,2]
[342505964,1731941445242,-625.6033902,9.999e-05,2]
[342505965,1731941445251,-500.0,9.999e-05,2]
[342505966,1731941445261,-500.0,9.999e-05,2]
[342505967,1731941445271,-500.0,9.999e-05,2]
[342505968,1731941445281,-500.0,9.999e-05,2]
[342505969,1731941445291,-500.0,9.999e-05,2]
[342505970,1731941445301,-500.0,9.999e-05,2]
[342505971,1731941445311,-500.0,9.999e-05,2]
[342505972,1731941445321,-500.0,9.999e-05,2]
[342505973,1731941445331,-500.0,9.999e-05,2]
[342505974,1731941445341,-500.0,9.999e-05,2]
[342505975,1731941445351,-500.0,9.999e-05,2]
[342505976,1731941445361,-500.0,9.999e-05,2]
[342505977,1731941445371,-500.0,9.999e-05,2]
[342505978,1731941445381,-500.0,9.999e-05,2]
[342505979,1731941445391,-500.0,9.999e-05,2]
[342505980,1731941445402,-500.0,9.999e-05,2]
[342505981,1731941445412,-500.0,9.999e-05,2]
[342505982,1731941445422,-500.0,9.999e-05,2]
[342505983,1731941445432,-186.11695062,9.999e-05,2]
[342505984,1731941445443,-500.0,9.999e-05,2]
[342505985,1731941445453,-500.0,9.999e-05,2]
[342505986,1731941445463,-500.0,9.999e-05,2]
[342505987,1731941445473,-500.0,9.999e-05,2]
[342505988,1731941445486,-562.47999999,9.999e-05,2]
[342505989,1731941445495,-668.0,9.999e-05,2]
[342505990,1731941445505,-668.0,9.999e-05,2]
[342505991,1731941445514,-668.0,9.999e-05,2]
[342505992,1731941445524,-668.0,9.999e-05,2]
[342505993,1731941445533,-668.0,9.999e-05,2]
[342505994,1731941445543,-668.0,9.999e-05,2]
[342505995,1731941445553,-505.65,9.999e-05,2]
[342505996,1731941445563,-668.0,9.999e-05,2]
[342505997,1731941445572,-668.0,9.999e-05,2]
[342505998,1731941445583,-668.0,9.999e-05,2]
[342505999,1731941445593,-668.0,9.999e-05,2]
[342506000,1731941445603,-668.0,9.999e-05,2]
[342506001,1731941445613,-668.0,9.999e-05,2]
[342506002,1731941445623,-668.0,9.999e-05,2]
[342506003,1731941445633,-668.0,9.999e-05,2]
[342506004,1731941445642,-668.0,9.999e-05,2]
[342506005,1731941445652,-668.0,9.999e-05,2]
[342506006,1731941445662,-668.0,9.999e-05,2]
[342506007,1731941445672,-668.0,9.999e-05,2]
[342506008,1731941445681,-668.0,9.999e-05,2]
[342506009,1731941445691,-668.0,9.999e-05,2]
[342506010,1731941445701,-668.11,9.999e-05,2]
[342506011,1731941445711,-684.67,9.999e-05,2]
[342506012,1731941445720,-684.67,9.999e-05,2]
[342506013,1731941445731,-684.67,9.999e-05,2]
[342506014,1731941445741,-684.67,9.999e-05,2]
[342506015,1731941445751,-684.67,9.999e-05,2]
[342506016,1731941445765,-692.41,9.999e-05,2]
[342506017,1731941445775,-684.67,9.999e-05,2]
[342506018,1731941445786,-692.41,9.999e-05,2]
[342506019,1731941445797,-684.67,9.999e-05,2]
[342506020,1731941445809,-692.41,9.999e-05,2]
[342506021,1731941445820,-692.41,9.999e-05,2]
[342506022,1731941445831,-692.41,9.999e-05,2]
[342506023,1731941445842,-684.67,9.999e-05,2]
[342506024,1731941445852,-692.41,9.999e-05,2]
[342506025,1731941445862,-684.67,9.999e-05,2]
[342506026,1731941445872,-692.41,9.999e-05,2]
[342506027,1731941445883,-684.67,9.999e-05,2]
[342506028,1731941445894,-692.41,9.999e-05,2]
[342506029,1731941445905,-684.67,9.999e-05,2]
[342506030,1731941445917,-692.41,9.999e-05,2]
[342506031,1731941445928,-684.67,9.999e-05,2]
[342506032,1731941445939,-692.41,9.999e-05,2]
[342506033,1731941445950,-684.67,9.999e-05,2]
[342506034,1731941445961,-692.41,9.999e-05,2]
[342506035,1731941445972,-684.67,9.999e-05,2]
[342506036,1731941445984,-692.41,9.999e-05,2]
[342506037,1731941445995,-684.67,9.999e-05,2]
[342506039,1731941446006,-692.41,9.999e-05,2]
[342506041,1731941446016,-684.67,9.999e-05,2]
[342506043,1731941446027,-692.41,9.999e-05,2]
[342506045,1731941446037,-684.67,9.999e-05,2]
[342506047,1731941446047,-692.41,9.999e-05,2]
[342506048,1731941446057,-684.67,9.999e-05,2]
[342506049,1731941446067,-692.41,9.999e-05,2]
[342506050,1731941446077,-684.67,9.999e-05,2]
[342506051,1731941446086,-692.41,9.999e-05,2]
[342506052,1731941446096,-684.67,9.999e-05,2]
[342506053,1731941446107,-692.41,9.999e-05,2]
[342506055,1731941446118,-684.71,9.999e-05,2]
[342506056,1731941446129,-692.41,9.999e-05,2]
[342506057,1731941446142,-692.41,9.999e-05,2]
[342506058,1731941446152,-692.47,9.999e-05,2]
[342506059,1731941446163,-558.03399619,9.999e-05,2]
[342506060,1731941446174,-2461.53,9.999e-05,2]
[342506061,1731941446186,-2461.53,9.999e-05,2]
[342506062,1731941446197,-2461.53,9.999e-05,2]
[342506063,1731941446208,-2461.53,9.999e-05,2]
[342506064,1731941446220,-2461.53,9.999e-05,2]
[342506065,1731941446233,-2461.53,9.999e-05,2]
[342506066,1731941446243,-2461.53,9.999e-05,2]
[342506067,1731941446254,-2461.53,9.999e-05,2]
[342506068,1731941446265,-2461.53,9.999e-05,2]
[342506069,1731941446275,-2461.53,9.999e-05,2]
[342506070,1731941446286,-2461.53,9.999e-05,2]
[342506071,1731941446297,-2461.53,9.999e-05,2]
[342506072,1731941446310,-2461.53,9.999e-05,2]
[342506073,1731941446320,-2461.53,9.999e-05,2]
[342506074,1731941446331,-2461.53,9.999e-05,2]
[342506075,1731941446341,-2461.53,9.999e-05,2]
[342506076,1731941446352,-2461.53,9.999e-05,2]
[342506077,1731941446363,-2461.53,9.999e-05,2]
[342506078,1731941446373,-2461.53,9.999e-05,2]
[342506079,1731941446384,-2461.53,9.999e-05,2]
[342506080,1731941446394,-2461.71488841,9.999e-05,2]
[342506081,1731941446404,-500.0,9.999e-05,2]
[342506082,1731941446416,-500.0,9.999e-05,2]
[342506083,1731941446427,-500.0,9.999e-05,2]
[342506084,1731941446438,-500.0,9.999e-05,2]
[342506085,1731941446449,-500.0,9.999e-05,2]
[342506086,1731941446461,-500.0,9.999e-05,2]
[342506087,1731941446472,-500.0,9.999e-05,2]
[342506088,1731941446486,-500.0,9.999e-05,2]
[342506089,1731941446497,-500.0,9.999e-05,2]
[342506090,1731941446509,-500.0,9.999e-05,2]
[342506091,1731941446518,-500.0,9.999e-05,2]
[342506092,1731941446528,-548.74,9.999e-05,2]
[342506093,1731941446539,-500.0,9.999e-05,2]
[342506094,1731941446549,-47063.02518521,9.999e-05,2]
[342506095,1731941446561,-250.0274167,0.0001,2]
[342506096,1731941446570,-195194.6160839,0.0001,2]
[342506097,1731941446581,-6382.93065457,0.0001,2]
[342506098,1731941446593,-2603.0,0.0001,2]
[342506099,1731941446605,-1465321.42937236,0.0001,2]
[342506100,1731941446624,-3100.0,0.0001,2]
[342506101,1731941446636,-36976.86092293,0.0001,2]
[342506102,1731941446648,-2773.45896293,0.0001,2]
[342506103,1731941446660,-1281.5637505,0.0001,2]
[342506104,1731941446672,-827.15953975,0.0001,2]
[342506105,1731941446684,-3849.1568,0.0001,2]
[342506106,1731941446703,-2615.70207003,0.0001,2]
[342506107,1731941446716,-5959.70111755,0.0001,2]
[342506108,1731941446732,-405.57116093,0.0001,2]
[342506109,1731941446747,-31879.40353436,0.0001,2]
[342506110,1731941446875,-5632.67722778,0.0001,2]
[342506111,1731941446945,-772.037945,0.0001,2]
[342506112,1731941446958,-9047.0,0.0001,2]
[342506113,1731941446971,-10535.6001,0.0001,2]
[342506114,1731941446987,-17719.57922838,0.0001,2]
[342506115,1731941447000,-90043.88441445,0.0001,2]
[342506116,1731941447012,-69328.38700013,0.0001,2]
[342506117,1731941447025,-2602.14330272,0.0001,2]
[342506118,1731941447038,-339.27972031,0.0001,2]
[342506119,1731941447050,-1040.55873926,0.0001,2]
[342506120,1731941790138,933.76,8.219e-05,2]
[342506121,1731942137001,1000.0,8.495e-05,2]
[342506122,1731942297564,250.0,8.476e-05,2]
[342506123,1731942326610,223.47,8.49e-05,2]
[342506124,1731942348611,250.0,8.48e-05,2]
[342506125,1731942357564,500.0,8.22e-05,2]
[342506126,1731942394215,500.0,8.22e-05,2]
[342506127,1731942394252,500.0,8.22e-05,2]
[342506128,1731942394658,501.21667854,8.22e-05,2]
[342506156,1731942591618,397.71,8.476e-05,2]
[342506162,1731942632494,-372.57,8.554e-05,2]
[342506163,1731942632507,-1120.17,8.554e-05,2]
[342506164,1731942632520,-448.57,8.986e-05,2]
[342506165,1731942632530,-423.04967499,8.986e-05,2]
[342506166,1731942632540,-390.69608326,8.989e-05,2]
[342506167,1731942632578,-57.87391674,8.989e-05,2]
[342506168,1731942632589,-448.57,8.991e-05,2]
[342506169,1731942632598,-249.99597665,8.993e-05,2]
[342506170,1731942632610,-198.57402335,8.993e-05,2]
[342506171,1731942632619,-448.57,8.996e-05,2]
[342506172,1731942632629,-448.57,8.998e-05,2]
[342506173,1731942632639,-448.57,9e-05,2]
[342506174,1731942632648,-448.57,9.003e-05,2]
[342506175,1731942632657,-448.57,9.005e-05,2]
[342506176,1731942632666,-448.57,9.008e-05,2]
[342506177,1731942632676,-448.57,9.01e-05,2]
[342506178,1731942632689,-448.57,9.012e-05,2]
[342506179,1731942632698,-448.57,9.015e-05,2]
[342506180,1731942632708,-448.57,9.017e-05,2]
[342506181,1731942632717,-448.57,9.019e-05,2]
[342506182,1731942632727,-448.57,9.022e-05,2]
[342506183,1731942632736,-448.57,9.024e-05,2]
[342506184,1731942632746,-448.57,9.026e-05,2]
[342506185,1731942632756,-448.57,9.029e-05,2]
[342506186,1731942632766,-448.57,9.031e-05,2]
[342506187,1731942632775,-377.14,9.049e-05,2]
[342506188,1731942632785,-164.85,9.131e-05,2]
[342506189,1731942632795,-432.72,9.241e-05,2]
[342506190,1731942632805,-150.0,9.332e-05,2]
[342506191,1731942632814,-187.161254,9.332e-05,2]
[342506192,1731942632824,-433.2,9.378e-05,2]
[342506193,1731942632834,-150.0,9.401e-05,2]
[342506194,1731942632843,-187.161254,9.488e-05,2]
[342506195,1731942632852,-223.47,9.551e-05,2]
[342506196,1731942632862,-1000.0,9.557e-05,2]
[342506197,1731942632872,-400.63310284,9.6e-05,2]
[342506198,1731942632881,-200.0,9.6e-05,2]
[342506199,1731942632891,-187.161254,9.643e-05,2]
[342506200,1731942632901,-999.99,9.67e-05,2]
[342506201,1731942632911,-601.47,9.67e-05,2]
[342506202,1731942632921,-299.99,9.67e-05,2]
[342506203,1731942632935,-748.32513934,9.67e-05,2]
[342506204,1731942632947,-1102.91764813,9.67e-05,2]
[342506205,1731942632969,-475.0432875,9.67e-05,2]
[342506206,1731942632980,-1561.73392503,9.67e-05,2]
[342506207,1731942632990,-5493.08506603,9.67e-05,2]
[342506208,1731942633022,-2744.6795361,9.67e-05,2]
[342506209,1731942633043,-459.87539787,9.67e-05,2]
[342506210,1731942633053,-509.62,9.67e-05,2]
[342506211,1731942633063,-446.61,9.67e-05,2]
[342506212,1731942633073,-150.99,9.67e-05,2]
[342506213,1731942633083,-187.161254,9.799e-05,2]
[342506214,1731942633094,-5784.8889,9.799e-05,2]
[342506215,1731942633104,-21889.42630307,9.8e-05,2]
[342506216,1731942633114,-150.0,9.848e-05,2]
[342506217,1731942633124,-13018.719,9.88e-05,2]
[342506218,1731942633135,-12195.7653,9.889e-05,2]
[342506219,1731942633145,-10877.1473,9.889e-05,2]
[342506220,1731942633154,-23991.46131506,9.899e-05,2]
[342506221,1731942633166,-19840.07907346,9.899e-05,2]
[342506222,1731942633181,-18059.86701148,9.899e-05,2]
[342506224,1731942633191,-1575.472,9.899e-05,2]
[342506226,1731942633200,-500.0,9.9e-05,2]
[342506228,1731942633209,-3338.438,9.9e-05,2]
[342506229,1731942633218,-500.0,9.979e-05,2]
[342506232,1731942633228,-500.0,9.979e-05,2]
[342506234,1731942633238,-500.0,9.979e-05,2]
[342506237,1731942633248,-500.0,9.979e-05,2]
[342506239,1731942633257,-500.0,9.979e-05,2]
[342506241,1731942633267,-500.0,9.979e-05,2]
[342506243,1731942633276,-695.667,9.983e-05,2]
[342506244,1731942633286,-500.0,9.989e-05,2]
[342506245,1731942633295,-457.45133988,9.989e-05,2]
[342506246,1731942633304,-348.87034089,9.989e-05,2]
[342506247,1731942633314,-312.75087194,9.989e-05,2]
[342506248,1731942633323,-500.0,9.989e-05,2]
[342506249,1731942633332,-560.66,9.989e-05,2]
[342506250,1731942633342,-500.0,9.992e-05,2]
[342506251,1731942633351,-199.16283956,9.992e-05,2]
[342506252,1731942633360,-500.0,9.992e-05,2]
[342506253,1731942633369,-500.0,9.992e-05,2]
[342506254,1731942633378,-500.0,9.992e-05,2]
[342506255,1731942633388,-851.24,9.992e-05,2]
[342506256,1731942633397,-500.0,9.992e-05,2]
[342506257,1731942633406,-557.05,9.992e-05,2]
[342506258,1731942633415,-500.0,9.992e-05,2]
[342506259,1731942633425,-81802.35408956,9.993e-05,2]
[342506260,1731942633438,-500.0,9.998e-05,2]
[342506261,1731942633447,-500.0,9.998e-05,2]
[342506262,1731942633456,-500.0,9.998e-05,2]
[342506263,1731942633465,-500.0,9.998e-05,2]
[342506264,1731942633475,-500.0,9.998e-05,2]
[342506265,1731942633484,-500.0,9.998e-05,2]
[342506266,1731942633493,-500.0,9.998e-05,2]
[342506267,1731942633503,-500.0,9.998e-05,2]
[342506268,1731942633514,-500.0,9.998e-05,2]
[342506269,1731942633525,-500.0,9.998e-05,2]
[342506270,1731942633534,-548.94,9.998e-05,2]
[342506271,1731942633543,-500.0,9.998e-05,2]
[342506272,1731942633554,-508.25,9.998e-05,2]
[342506273,1731942633564,-500.0,9.998e-05,2]
[342506274,1731942633574,-627.79,9.998e-05,2]
[342506275,1731942633583,-595.76,9.998e-05,2]
[342506276,1731942633594,-500.0,9.998e-05,2]
[342506277,1731942633606,-613.76,9.998e-05,2]
[342506278,1731942633615,-500.0,9.998e-05,2]
[342506279,1731942633625,-500.0,9.998e-05,2]
[342506280,1731942633634,-500.0,9.998e-05,2]
[342506281,1731942633643,-500.0,9.998e-05,2]
[342506282,1731942633653,-500.0,9.998e-05,2]
[342506283,1731942633662,-500.0,9.998e-05,2]
[342506284,1731942633671,-500.0,9.998e-05,2]
[342506285,1731942633683,-500.0,9.998e-05,2]
[342506286,1731942633694,-500.0,9.998e-05,2]
[342506287,1731942633704,-500.0,9.998e-05,2]
[342506288,1731942633713,-500.0,9.998e-05,2]
[342506289,1731942633723,-500.0,9.998e-05,2]
[342506290,1731942633733,-500.0,9.998e-05,2]
[342506291,1731942633742,-648.63,9.998e-05,2]
[342506292,1731942633751,-500.0,9.998e-05,2]
[342506293,1731942633760,-500.0,9.998e-05,2]
[342506294,1731942633769,-500.0,9.998e-05,2]
[342506295,1731942633778,-500.0,9.998e-05,2]
[342506296,1731942633787,-500.0,9.998e-05,2]
[342506297,1731942633797,-500.0,9.998e-05,2]
[342506298,1731942634035,-500.0,9.998e-05,2]
[342506299,1731942634045,-500.0,9.998e-05,2]
[342506300,1731942634054,-500.0,9.998e-05,2]
[342506301,1731942634063,-500.0,9.998e-05,2]
[342506302,1731942634073,-500.0,9.998e-05,2]
[342506303,1731942634082,-500.0,9.998e-05,2]
[342506304,1731942634092,-500.0,9.998e-05,2]
[342506305,1731942634101,-500.0,9.998e-05,2]
[342506306,1731942634110,-500.0,9.998e-05,2]
[342506307,1731942634120,-500.0,9.998e-05,2]
[342506308,1731942634129,-500.0,9.998e-05,2]
[342506309,1731942634139,-519.83046141,9.998e-05,2]
[342506310,1731942634148,-500.0,9.998e-05,2]
[342506311,1731942634157,-500.0,9.998e-05,2]
[342506312,1731942634167,-500.0,9.998e-05,2]
[342506313,1731942634176,-500.0,9.998e-05,2]